[Event "1000 GM Labor Day Super Swiss 2024"]
[Site "San Jose"]
[Date "2024.09.01"]
[Round "3.14"]
[White "Champsi, Imran"]
[Black "Guo, Ethan"]
[Result "1/2-1/2"]
[Annotator "TA"]
[ECO "D85"]
[WhiteElo "2012"]
[BlackElo "2211"]
[PlyCount "149"]
[EventDate "2024.08.30"]
[EventType "swiss"]
[EventCountry "USA"]
[SourceTitle "playchess.com"]
[Source "ChessBase"]
[SourceQuality "1"]
[TimeControl "5400+30"]

{[%evp 46,149,-21,-24,-21,-45,-16,-25,0,-22,0,-22,-22,-18,-16,-17,-20,-15,-20,-18,-18,-20,-16,-25,-18,-23,-15,-27,0,-7,0,-47,-44,-54,0,0,0,0,0,-40,0,0,0,0,0,0,0,0,0,0,0,0,0,0,0,0,0,-806,-669,-613,-810,-716,-677,-678,-500,-435,-576,0,0,0,0,0,0,0,0,0,0,0,0,0,0,0,0,0,0,0,0,0,0,0,0,0,0,0,0,0,0,0,0,0,0,0,0,0,0,0]} 1. d4 {[%emt 0:01:42]} Nf6 {[%emt 0:04:31]} 2. c4 {[%emt 0:00:58]} g6 {[%emt 0:00:05]} 3. Nc3 {[%emt 0:00:23]} d5 {[%emt 0:00:05]} 4. cxd5 {[%emt 0:00:22]} Nxd5 {[%emt 0:00:24]} 5. e4 {[%emt 0:00:01]} Nxc3 {[%emt 0:00:08]} 6. bxc3 {[%emt 0:00:02]} Bg7 {[%emt 0:00:14]} 7. Nf3 {[%emt 0:00:10]} c5 {[%emt 0:00:09]} 8. Be3 $1 {[%emt 0:00:03][%mdl 4] 8.Be3 is a critical line.} Nc6 {[%emt 0:00:32]} 9. d5 {[%emt 0:21:25] D85: Exchange Grünfeld: Unusual White 7th moves and lines with 7 Nf3.} Bxc3+ {[%emt 0:01:36]} 10. Bd2 {[%emt 0:00:11]} Bxd2+ {[%emt 0:00:31]} 11. Qxd2 {[%emt 0:00:03]} Nd4 {[%emt 0:00:27]} 12. Nxd4 {[%emt 0:00:14]} cxd4 {[%emt 0:00:05]} 13. Bb5+ $146 {[%emt 0:04:07]} ({Predecessor:} 13. Qxd4 Qa5+ 14. Qd2 Qxd2+ 15. Kxd2 Bd7 16. Be2 O-O 17. Rab1 Rfd8 18. Rxb7 e6 19. Rc1 exd5 {1-0 Dittel,H (2068)-Demircan,S (2095) AUT-chT2O 1617 2016 (2.6)}) 13... Bd7 {[%emt 0:00:13]} 14. Bxd7+ {[%emt 0:00:14]} Qxd7 {[%emt 0:00:07]} 15. Qxd4 {[%emt 0:00:18]} O-O {[%emt 0:00:08]} 16. O-O {[%emt 0:00:25]} Rfd8 {[%emt 0:00:27]} 17. Qb4 {[%emt 0:08:14]} b6 {[%emt 0:00:17]} 18. f3 {[%emt 0:02:43]} Rac8 {[%emt 0:02:00]} 19. Rfd1 {[%emt 0:13:29]} Rc5 {[%emt 0:00:19]} 20. Rd2 {[%emt 0:08:41]} Rdc8 {[%emt 0:01:20]} 21. Rad1 {[%emt 0:09:09]} Rc4 {[%emt 0:00:46]} 22. Qa3 {[%emt 0:03:08]} Rc3 {[%emt 0:01:41]} 23. Qa6 {[%emt 0:06:15]} Qc7 {[%emt 0:00:44]} 24. h3 {[%emt 0:02:25]} Qc5+ {[%emt 0:03:55]} 25. Kh2 {[%emt 0:02:29]} Rc7 {[%emt 0:00:24]} 26. Qe2 {[%emt 0:02:38]} b5 {[%emt 0:03:07]} 27. d6 {[%emt 0:04:33]} exd6 {[%emt 0:00:25]} 28. Rxd6 {[%emt 0:01:21]} Rc2 {[%emt 0:00:52]} 29. R6d2 {[%emt 0:01:12]} Qe5+ {[%emt 0:00:33]} 30. Kh1 {[%emt 0:02:56]} Qb2 {[%emt 0:00:28]} 31. Qe3 {[%emt 0:01:57]} Rxd2 {[%emt 0:01:32]} 32. Rxd2 {[%emt 0:00:19]} Qc1+ {[%emt 0:00:48]} 33. Kh2 {[%emt 0:00:10]} Rd7 {[%emt 0:00:09]} 34. Rd3 {[%emt 0:00:33]} Qc7+ {[%emt 0:00:46]} 35. Kh1 {[%emt 0:00:34]} Rxd3 {[%emt 0:00:12]} 36. Qxd3 {[%emt 0:00:02]} b4 {[%emt 0:02:00]} 37. Qd4 {[%emt 0:01:14]} a5 {[%emt 0:01:46]} 38. Qd5 {[%emt 0:00:42]} (38. e5 $11) 38... Kg7 $15 {[%emt 0:01:56]} 39. e5 {[%emt 0:00:38]} a4 {[%emt 0:03:30]} (39... Qc1+ 40. Kh2 $17) (39... Qb6 $1 $15) 40. e6 $11 {[%emt 0:00:45]} fxe6 {[%emt 0:00:24]} 41. Qxe6 {[%emt 0:00:49]} h5 {[%emt 0:06:55]} 42. Qa6 {[%emt 0:01:09]} b3 {[%emt 0:02:02]} 43. Qxa4 {[%emt 0:00:52]} Qc1+ {[%emt 0:00:44]} 44. Kh2 {[%emt 0:00:01]} b2 {[%emt 0:00:10]} 45. Qd7+ {[%emt 0:01:40]} Kh6 {[%emt 0:00:11]} (45... Kf6 $5 46. Qd6+ $8 Kf7 47. Qd7+ Kf6 48. Qd6+ Kg5 49. Qe5+ Kh6 $11) 46. Qd8 {[%emt 0:00:30]} Qf4+ {[%emt 0:02:36]} 47. g3 {[%emt 0:00:06]} Qe5 {[%emt 0:00:06]} (47... b1=Q $6 48. Qh8+ (48. gxf4 Qxa2+ 49. Kg3 Qb2 $11) 48... Kg5 49. h4+ $14 (49. gxf4+ Kxf4 50. Qf6+ Ke3 $11) (49. gxf4+ Kxf4 50. Qf6+ Ke3 $11)) 48. Qf8+ $1 {[%emt 0:01:48]} Kh7 {[%emt 0:01:12]} 49. Qf7+ {[%emt 0:00:03]} Qg7 {[%emt 0:00:09]} 50. Qb3 {[%emt 0:00:25]} h4 {[%emt 0:02:16]} 51. gxh4 $2 {[%emt 0:01:19][%mdl 8192]} (51. Kg2 $11) 51... Qe5+ $19 {[%emt 0:00:46]} 52. Kg2 {[%emt 0:00:23]} Qe2+ {[%emt 0:01:15]} 53. Kg3 {[%emt 0:00:15]} Qe1+ {[%emt 0:04:17]} 54. Kg2 {[%emt 0:00:08] [#]} Qd2+ $1 {[%emt 0:01:12]} (54... b1=B 55. Qf7+ Kh6 56. Qf8+ Kh7 57. Qf7+ Kh8 58. Qf8+ Kh7 59. Qf7+ $11) 55. Kg3 {[%emt 0:00:13] [#]} Kh6 $1 {[%emt 0:01:24]} (55... Qe1+ 56. Kg2 $11) 56. Qb8 {[%emt 0:01:07]} Qd4 {[%emt 0:01:04]} (56... Qe1+ 57. Kg2 Qd2+ (57... b1=B 58. Qh8#) 58. Kg3 $19) (56... Qc3 $5 57. Qf8+ $8 Qg7 $11) 57. Kg2 $1 {[%emt 0:00:50]} Kh5 {[%emt 0:01:11]} (57... Qd2+ $2 58. Kg3 Qd4 (58... Qe1+ $2 59. Kg2 $17) 59. Kg2 $19) 58. Qb7 $1 {[%emt 0:00:34]} Qd2+ {[%emt 0:02:11]} 59. Kg3 {[%emt 0:00:04]} Qe1+ {[%emt 0:01:10]} 60. Kg2 {[%emt 0:00:05]} Qe2+ {[%emt 0:00:26]} ({Not} 60... b1=B 61. Qh7#) 61. Kg3 {[%emt 0:00:10]} Qe5+ {[%emt 0:00:45]} (61... Qe1+ 62. Kg2 Qe2+ (62... b1=B 63. Qh7#) 63. Kg3 Qe1+) 62. Kg2 {[%emt 0:00:11]} Kh6 {[%emt 0:00:57]} (62... Kxh4 $5 63. Qb4+ $8 Kh5 $11) 63. Qb4 {[%emt 0:00:57]} Kg7 {[%emt 0:03:03]} 64. a4 {[%emt 0:00:43]} Kf7 {[%emt 0:01:00]} 65. Qb7+ {[%emt 0:01:13]} Ke6 {[%emt 0:00:57]} 66. Qb3+ {[%emt 0:00:33]} Kd7 {[%emt 0:02:16]} 67. Qb7+ {[%emt 0:00:20]} Kd8 {[%emt 0:01:38]} 68. Qb6+ {[%emt 0:00:33]} Kc8 {[%emt 0:00:34]} 69. Qa6+ {[%emt 0:00:31]} Kc7 {[%emt 0:00:16]} 70. Qa7+ {[%emt 0:00:15]} Kc6 {[%emt 0:00:50]} 71. Qa6+ {[%emt 0:00:15]} Kd5 {[%emt 0:00:10]} 72. Qb5+ {[%emt 0:00:13]} Ke6 {[%emt 0:00:33]} 73. Qe8+ {[%emt 0:00:03]} Kf5 {[%emt 0:00:27]} (73... Kd5 $5 74. Qb5+ $8 Ke6 75. Qe8+ Kf6 76. Qf8+ Ke6 77. Qe8+ $11) 74. Qf7+ {[%emt 0:00:46]} Qf6 {[%emt 0:00:03]} 75. Qd5+ {[%emt 0:00:11]} 1/2-1/2

[Event "1000 GM Labor Day Super Swiss 2024"]
[Site "San Jose"]
[Date "2024.09.01"]
[Round "3.15"]
[White "Gongora Montes, Benjamin"]
[Black "Ubaldo Suarez, Maria Gisela"]
[Result "1-0"]
[Annotator "TA"]
[ECO "D03"]
[WhiteElo "2111"]
[BlackElo "1958"]
[PlyCount "91"]
[EventDate "2024.08.30"]
[EventType "swiss"]
[EventCountry "USA"]
[SourceTitle "playchess.com"]
[Source "ChessBase"]
[SourceQuality "1"]
[TimeControl "5400+30"]

{[%evp 15,91,20,29,30,28,0,77,18,33,28,43,-58,-56,-63,-48,-287,-258,-273,-136,-114,-132,-275,-282,-247,-141,-156,-44,-37,0,0,0,0,0,0,0,0,0,0,84,0,0,0,0,0,0,-94,14,17,17,0,0,0,22,29,25,22,167,151,237,228,235,239,241,241,241,238,199,192,192,192,192,193,193,193,29981,29982,29982,29983]} 1. d4 {[%emt 0:00:02]} d5 {[%emt 0:09:39]} 2. Nf3 {[%emt 0:00:11]} Nf6 {[%emt 0:00:14]} 3. Bg5 {[%emt 0:00:11]} e6 {[%emt 0:00:41]} 4. e3 {[%emt 0:00:08]} Be7 {[%emt 0:00:51]} 5. Nbd2 {[%emt 0:00:13]} Nbd7 {[%emt 0:00:19]} 6. Bd3 {[%emt 0:00:13]} O-O {[%emt 0:00:29]} 7. c3 {[%emt 0:02:15]} c5 {[%emt 0:00:29]} 8. Ne5 {[%emt 0:00:10]} Qc7 {[%emt 0:10:26]} (8... Nxe5 {simplifies} 9. dxe5 Nd7 10. Bxe7 Qxe7 11. f4 c4) 9. f4 {[%emt 0:01:12]} Rb8 {[%emt 0:01:06]} 10. Qf3 {[%emt 0:05:29]} Re8 {[%emt 0:00:36]} (10... h6 $11 11. Bh4 b5) 11. g4 {[%emt 0:21:00] White has more active pieces.} (11. Bxf6 $16 Nxf6 12. a3) 11... Nf8 {[%emt 0:05:18]} 12. h4 {[%emt 0:00:19]} b5 {[%emt 0:00:07]} 13. f5 {[%emt 0:04:22]} (13. a3 $14) 13... b4 $15 {[%emt 0:04:47]} 14. Bf4 {[%emt 0:03:02][%cal Oe5f7]} Bd6 {[%emt 0:02:25]} 15. Rc1 $2 {[%emt 0:05:19]} (15. g5 $15 N6d7 16. Nxd7 Bxd7 17. Bxd6 Qxd6 18. f6 bxc3 19. bxc3) 15... bxc3 {[%emt 0:00:47]} 16. bxc3 {[%emt 0:00:18]} Rb2 {[%emt 0:02:03]} (16... cxd4 $19 {has better winning chances.} 17. exd4 exf5) 17. g5 $17 {[%emt 0:00:23]} Ne4 {[%emt 0:00:43]} 18. Nxe4 {[%emt 0:05:44]} (18. Bxe4 $17 {only move.} cxd4 (18... dxe4 19. Nxe4 Bb7 20. f6 $11) 19. fxe6 Nxe6 (19... Bxe5 $2 20. Bxe5 dxe4 21. Nxe4 $18) (19... Bxe6 20. Bxh7+ Kxh7 21. exd4 $17) 20. Bxd5 dxe3 (20... Bxe5 21. Bxe5 Qxe5 22. Nc4 $16) 21. Bxe3 (21. Ndc4 $2 Rf2 $19) 21... Bxe5 22. O-O) 18... dxe4 $19 {[%emt 0:00:59]} 19. Bxe4 {[%emt 0:00:15]} exf5 {[%emt 0:04:44]} (19... Rxa2 20. O-O exf5 21. Bd5 Bxe5 22. Bxa2 (22. Bxe5 Rxe5 23. dxe5 Rb2 $14) 22... Bxf4 23. Qxf4 $14) (19... cxd4 $19 20. Nd3 exf5 (20... Rxa2 21. f6 $17) 21. Nxb2 Rxe4 (21... fxe4 22. Bxd6 Qxd6 23. Qf4 $17) 22. Bxd6 Qxd6 23. cxd4 Bb7 (23... Qxd4 $2 24. Nd1 $19)) 20. Bd5 $17 {[%emt 0:00:16] [#]} Bxe5 {[%emt 0:06:24]} (20... Ng6 $1 $17 {[%cal Rg6f4] ...Nxf4 is the strong threat.} 21. O-O (21. Bxf7+ Qxf7 22. Nxf7 Bxf4 $19) 21... Bxe5 (21... Nxh4 22. Qh1 $17) (21... Nxe5 22. dxe5 Bxe5 23. Rcd1 $17) 22. dxe5 Be6 (22... Nxh4 $2 23. Qd1 $19) (22... Nxe5 23. Qg3 $17)) 21. Bxe5 $15 {[%emt 0:00:15]} Rxe5 {[%emt 0:08:12]} 22. dxe5 {[%emt 0:00:10]} Qxe5 {[%emt 0:00:02]} 23. c4 {[%emt 0:14:26]} Rxa2 {[%emt 0:03:33]} 24. Qf4 {[%emt 0:00:08]} Qb2 {[%emt 0:00:27][%cal Rb2c1]} 25. O-O {[%emt 0:00:10]} Be6 {[%emt 0:01:36] Strongly threatening ...Bxd5.} 26. Rb1 {[%emt 0:00:24]} Qc2 {[%emt 0:00:36] [#]} (26... Qc3 $11 {remains equal.}) 27. Rfc1 {[%emt 0:18:00]} (27. Bf3 $1 $16) 27... Qd2 $11 {[%emt 0:07:45]} 28. Rd1 {[%emt 0:00:28]} Qc2 {[%emt 0:00:35] White must now prevent ...Bxd5.} 29. Rbc1 {[%emt 0:12:26]} Qb2 {[%emt 0:06:12]} 30. Qg3 {[%emt 0:01:53]} (30. Rb1 $11 {keeps the balance.} Qc2 31. Rdc1) 30... a5 {[%emt 0:07:13]} ({Black should play} 30... Bxd5 $17 31. cxd5 Ra4) 31. Rb1 {[%emt 0:03:21][%mdl 1024] White has compensation.} Qc2 {[%emt 0:00:21]} 32. Rdc1 {[%emt 0:03:09]} Qd2 {[%emt 0:02:47]} 33. Rd1 {[%emt 0:00:06] Some like it hot} Qc2 {[%emt 0:01:22]} 34. Bf3 {[%emt 0:00:52]} Qc3 {[%emt 0:08:02]} (34... Qxc4 $2 35. Rb8 f4 36. Qxf4 Qxf4 37. exf4 $18) 35. Bg2 {[%emt 0:00:08]} g6 {[%emt 0:03:58]} (35... Qxc4 $2 36. Rb8 f4 37. Qf3 $18) (35... Rd2 $1 $11 {and Black is okay.}) 36. Rd8 $18 {[%emt 0:00:49]} Ra1 {[%emt 0:00:19]} (36... f4 $16 37. Qe1 (37. Qxf4 $2 {is the wrong capture.} Rxg2+ 38. Kxg2 Qc2+ 39. Kg3 Qxb1 $19) 37... Qxe1+ (37... Qxe3+ $2 {perishes.} 38. Qxe3 fxe3 39. Rbb8 $18) (37... Qxc4 $2 38. Rbb8 $18) (37... Qc2 $2 38. Qf1 $18) 38. Rxe1 fxe3) 37. Rxa1 {[%emt 0:00:26]} Qxa1+ {[%emt 0:00:01]} 38. Kh2 {[%emt 0:00:08] Threatens to win with Qc7.} Bxc4 {[%emt 0:01:05]} 39. Qd6 $40 {[%emt 0:00:08][%csl Gd8,LRc5,LRf8][%cal Rd6f8][%mdl 128] White is out for blood.} Qg7 {[%emt 0:00:04]} 40. Qxc5 {[%emt 0:00:09]} Be6 {[%emt 0:03:13]} 41. Qxa5 {[%emt 0:00:10]} h6 {[%emt 0:00:00]} 42. Qc5 {[%emt 0:00:21] And now Qd6 would win.} hxg5 {[%emt 0:00:00]} 43. hxg5 {[%emt 0:00:09] Hoping for Qd6.} f6 {[%emt 0:00:28]} 44. Qd6 {[%emt 0:00:15]} Kf7 {[%emt 0:00:52]} (44... Qf7 $18 45. Rxf8+ Qxf8 46. Qxe6+ Kg7) 45. Bd5 {[%emt 0:00:21]} Bxd5 {[%emt 0:00:37]} 46. Qxd5+ {[%emt 0:00:29] Never resign too early!   Weighted Error Value: White=0.26 (precise) /Black=0.37.  Loses game:     	White=1     	---        Mistake:       	White=5     	Black=9      Inaccurate:     	White=1     	Black=1      OK:         	White=10    	Black=14     Best:        	White=9     	Black=5} 1-0

[Event "1000 GM Labor Day Super Swiss 2024"]
[Site "San Jose"]
[Date "2024.09.01"]
[Round "3.16"]
[White "Yan, Nathan"]
[Black "Deng, Henry"]
[Result "1/2-1/2"]
[Annotator "TA"]
[ECO "B45"]
[WhiteElo "2160"]
[BlackElo "2338"]
[PlyCount "38"]
[EventDate "2024.08.30"]
[EventType "swiss"]
[EventCountry "USA"]
[SourceTitle "playchess.com"]
[Source "ChessBase"]
[SourceQuality "1"]
[TimeControl "5400+30"]

{[%evp 23,38,29,34,33,33,29,39,43,22,36,52,36,32,22,22,24,19]} 1. e4 {[%emt 0:09:20]} c5 {[%emt 0:00:04]} 2. Nf3 {[%emt 0:00:49]} e6 {[%emt 0:00:05]} 3. d4 {[%emt 0:00:06]} cxd4 {[%emt 0:00:04]} 4. Nxd4 {[%emt 0:00:06]} Nf6 {[%emt 0:00:05]} 5. Nc3 {[%emt 0:00:10]} Nc6 {[%emt 0:00:03]} 6. Ndb5 {[%emt 0:00:18]} Bb4 {[%emt 0:00:04]} 7. a3 {[%emt 0:00:46]} Bxc3+ {[%emt 0:00:05]} 8. Nxc3 {[%emt 0:00:08]} d5 {[%emt 0:00:02]} 9. exd5 {[%emt 0:00:02]} exd5 {[%emt 0:00:04]} 10. Bd3 {[%emt 0:00:01]} O-O {[%emt 0:00:10]} 11. O-O {[%emt 0:00:02]} Bg4 {[%emt 0:00:29]} 12. f3 {[%emt 0:00:25]} Bh5 {[%emt 0:00:02]} 13. Bg5 {[%emt 0:00:27]} Qb6+ {[%emt 0:00:04]} 14. Kh1 {[%emt 0:00:18] [#] Threatens to win with Bxf6. Active counter play!} Ne4 {[%emt 0:00:05]} 15. Nxe4 {[%emt 0:00:25] White is slightly better.} ({But not} 15. Nxd5 Nf2+ 16. Rxf2 Qxf2 $15) 15... dxe4 {[%emt 0:00:03]} 16. Bxe4 {[%emt 0:00:01]} Qxb2 {[%emt 0:00:15]} 17. Rb1 {[%emt 0:00:37]} Qxa3 {[%emt 0:00:05]} 18. Rxb7 {[%emt 0:00:02]} Qa6 {[%emt 0:00:12]} 19. Rb1 {[%emt 0:00:22] Qd6 is the strong threat.} Bg6 {[%emt 0:01:04] Weighted Error Value: White=0.02 (flawless) /Black=0.02 (flawless) .  OK:         	White=3     	Black=4} 1/2-1/2

[Event "1000 GM Labor Day Super Swiss 2024"]
[Site "San Jose"]
[Date "2024.09.01"]
[Round "3.17"]
[White "Alfaro, William"]
[Black "Sivakumar, Shaashwath"]
[Result "0-1"]
[Annotator "TA"]
[ECO "D17"]
[WhiteElo "2137"]
[BlackElo "2321"]
[PlyCount "50"]
[EventDate "2024.08.30"]
[EventType "swiss"]
[EventCountry "USA"]
[SourceTitle "playchess.com"]
[Source "ChessBase"]
[SourceQuality "1"]
[TimeControl "5400+30"]

{[%evp 15,50,27,10,18,40,-9,0,-21,-6,-57,-52,-57,-35,-55,-11,-21,-34,-39,-25,-108,-135,-97,-127,-137,-125,-133,-134,-238,-224,-206,-218,-362,-350,-355,-330,-434,-442]} 1. d4 {[%emt 0:20:17]} d5 {[%emt 0:00:05]} 2. Nf3 {[%emt 0:00:05]} Nf6 {[%emt 0:00:03]} 3. c4 {[%emt 0:00:05]} c6 {[%emt 0:00:02]} 4. Nc3 {[%emt 0:00:19]} dxc4 {[%emt 0:00:04]} 5. a4 {[%emt 0:00:08]} Bf5 {[%emt 0:00:05]} 6. Ne5 {[%emt 0:00:04]} Nbd7 {[%emt 0:00:03]} 7. Nxc4 {[%emt 0:01:00]} Nb6 {[%emt 0:00:04]} 8. Ne5 {[%emt 0:01:47]} a5 {[%emt 0:00:04]} 9. e3 {[%emt 0:02:30]} h6 {[%emt 0:13:44]} 10. g4 {[%emt 0:05:10]} (10. f3 $14) 10... Bh7 $11 {[%emt 0:19:10]} 11. Bg2 {[%emt 0:01:17] The position is equal.} e6 {[%emt 0:04:09]} 12. h4 {[%emt 0:03:18]} ({Better is} 12. e4 $11) 12... Nfd7 $15 {[%emt 0:00:22]} 13. Nxd7 {[%emt 0:06:22]} Nxd7 {[%emt 0:04:41]} 14. e4 {[%emt 0:15:50]} Bb4 {[%emt 0:01:49]} 15. g5 {[%emt 0:01:07]} Qe7 {[%emt 0:07:17]} 16. Kf1 {[%emt 0:02:14]} O-O-O {[%emt 0:03:57][%cal Od7c5]} 17. Qb3 {[%emt 0:03:17] [#]} (17. Qe2 $11) 17... e5 $1 $17 {[%emt 0:04:39]} 18. d5 {[%emt 0:08:37]} Nc5 {[%emt 0:06:16]} 19. Qc4 {[%emt 0:02:59] [#]} Bxc3 $1 {[%emt 0:12:29]} 20. Qxc3 {[%emt 0:01:25] aiming for Be3.} (20. bxc3 $2 {perishes.} cxd5 21. Qb5 Qc7 (21... Nxe4 22. Qxa5 hxg5 23. Be3 $17) (21... dxe4 $2 22. Ba3 $18) 22. gxh6 gxh6 $19 (22... Nxe4 $2 23. hxg7 Rhg8 24. Bg5 $19) (22... Bxe4 23. Bxe4 Nxe4 24. hxg7 $11)) 20... Bxe4 {[%emt 0:00:11]} 21. Be3 {[%emt 0:02:55]} (21. Bxe4 $17 {is a better defense.} Nxe4 22. Qc2) 21... Bxg2+ {[%emt 0:00:26]} 22. Kxg2 {[%emt 0:00:01]} Rxd5 {[%emt 0:00:43]} 23. Rad1 {[%emt 0:05:57] Prevents Nd3} (23. Qxa5 {was worth a try.} Na6 24. Qe1) 23... Qd7 $19 {[%emt 0:03:23] ( -> ...Qg4+)} (23... Nxa4 24. Qc2 Rxd1 25. Rxd1 Nxb2 26. Qxb2 hxg5 27. Qb6 $16) 24. Rxd5 {[%emt 0:04:14]} Qxd5+ {[%emt 0:00:05]} 25. Kg1 {[%emt 0:00:02]} Ne4 {[%emt 0:19:09] Weighted Error Value: White=0.45/Black=0.05 (flawless) .  Mistake:       	White=5     	---        Inaccurate:     	White=1     	Black=1      OK:         	White=4     	Black=5      Best:        	---       	Black=2      Strong:       	---       	Black=2} (25... Nxa4 26. Qc2 Nxb2 27. Qxb2 $17) 0-1

[Event "1000 GM Labor Day Super Swiss 2024"]
[Site "San Jose"]
[Date "2024.09.01"]
[Round "3.18"]
[White "Wu, Derek"]
[Black "Garduno Huerta, Joshua Emiliano"]
[Result "1-0"]
[Annotator "TA"]
[ECO "D30"]
[WhiteElo "2278"]
[BlackElo "2056"]
[PlyCount "67"]
[EventDate "2024.08.30"]
[EventType "swiss"]
[EventCountry "USA"]
[SourceTitle "playchess.com"]
[Source "ChessBase"]
[SourceQuality "1"]
[TimeControl "5400+30"]

{[%evp 14,67,14,16,23,19,50,51,50,-7,2,8,86,77,88,91,83,82,88,78,78,47,81,73,78,55,72,80,96,86,99,102,104,99,236,209,210,214,452,487,473,484,447,484,474,482,477,482,479,442,527,526,656,632,661,645]} 1. d4 {[%emt 0:08:12]} d5 {[%emt 0:00:05]} 2. c4 {[%emt 0:00:07]} c6 {[%emt 0:00:08]} 3. Nf3 {[%emt 0:00:14]} Nf6 {[%emt 0:00:04]} 4. Qb3 {[%emt 0:00:14]} e6 {[%emt 0:01:46]} 5. g3 {[%emt 0:00:15]} dxc4 {[%emt 0:01:13]} 6. Qxc4 {[%emt 0:00:12]} b5 {[%emt 0:00:07]} 7. Qc2 {[%emt 0:00:55]} Bb7 {[%emt 0:00:15]} 8. Bg2 {[%emt 0:01:47]} Qb6 {[%emt 0:02:43]} 9. a4 {[%emt 0:05:50]} a6 {[%emt 0:03:01]} 10. O-O {[%emt 0:06:40]} Nbd7 {[%emt 0:03:51] White is slightly better.} 11. Nbd2 {[%emt 0:05:30]} (11. Ne5 $14) 11... c5 {[%emt 0:17:42]} 12. dxc5 {[%emt 0:03:41]} Nxc5 {[%emt 0:04:29]} (12... Bxc5 $11 {keeps the balance.} 13. Nb3 Be4) 13. axb5 $16 {[%emt 0:03:30]} axb5 {[%emt 0:00:05]} 14. Rxa8+ {[%emt 0:00:09]} Bxa8 {[%emt 0:00:02]} 15. b4 {[%emt 0:01:25]} Ncd7 {[%emt 0:06:30][%cal Ob6b8]} 16. Qc8+ {[%emt 0:11:09]} Qd8 {[%emt 0:01:26]} 17. Qxd8+ {[%emt 0:01:27]} Kxd8 {[%emt 0:00:02]} 18. Nd4 {[%emt 0:00:46][%csl LRa8,LRb5]} Bxg2 {[%emt 0:01:26]} 19. Kxg2 {[%emt 0:00:03]} Nd5 {[%emt 0:00:18]} 20. Ba3 $36 {[%emt 0:01:09][%mdl 2048] White is really pushing.} Ne5 {[%emt 0:07:02] Prevents N2f3.} 21. Rb1 {[%emt 0:05:47]} Kd7 {[%emt 0:15:39]} 22. Nxb5 {[%emt 0:06:30]} Nc6 {[%emt 0:01:48][%cal Rf8b4]} 23. Nc4 {[%emt 0:01:13] And now e4 would win.} Ndxb4 {[%emt 0:09:16] This costs Black the game.} (23... Be7 $16 {might work better.}) 24. Nb6+ {[%emt 0:03:42]} Ke8 {[%emt 0:03:24] [#]} 25. Rc1 $1 {[%emt 0:07:22] Repels Bc5. Bxb4 is the strong threat.} ({Don't do} 25. Nc7+ Kd8 26. Nb5 Nd5) 25... Be7 {[%emt 0:07:01]} (25... f6 26. Bxb4 Nxb4) 26. Bxb4 $18 {[%emt 0:00:55] White is clearly winning.} Nxb4 {[%emt 0:00:11]} 27. Nc7+ {[%emt 0:00:09] Excellent horsemanship.} Kf8 {[%emt 0:01:21] [#]} 28. Nxe6+ {[%emt 0:00:52][%mdl 512]} fxe6 {[%emt 0:00:31]} 29. Rc8+ {[%emt 0:00:05]} Kf7 {[%emt 0:00:13] ...Rxc8 would now be deadly.} 30. Rxh8 {[%emt 0:00:30]} h6 {[%emt 0:00:30]} 31. Rc8 {[%emt 0:00:30]} Na6 {[%emt 0:00:30]} 32. Nc4 {[%emt 0:00:30]} Kf6 {[%emt 0:00:30]} 33. f4 {[%emt 0:00:30]} Nc5 {[%emt 0:00:30]} 34. Kf3 {[%emt 0:00:30] Weighted Error Value: White=0.06 (flawless) /Black=0.41.  Mistake:       	White=1     	Black=3      Inaccurate:     	---       	Black=2      OK:         	White=14    	Black=5      Best:        	White=4     	Black=4} 1-0

[Event "1000 GM Labor Day Super Swiss 2024"]
[Site "San Jose"]
[Date "2024.09.01"]
[Round "3.19"]
[White "Biyiasas, Theodore"]
[Black "Bansal, Advay"]
[Result "0-1"]
[Annotator "TA"]
[ECO "D91"]
[WhiteElo "1973"]
[BlackElo "2234"]
[PlyCount "34"]
[EventDate "2024.08.30"]
[EventType "swiss"]
[EventCountry "USA"]
[SourceTitle "playchess.com"]
[Source "ChessBase"]
[SourceQuality "1"]
[TimeControl "5400+30"]

{[%evp 11,34,1,9,-24,-27,-229,-240,-231,-227,-236,-229,-377,-387,-384,-395,-375,-381,-456,-418,-572,-513,-544,-498,-517,-513]} 1. d4 {[%emt 0:00:03]} Nf6 {[%emt 0:01:15]} 2. c4 {[%emt 0:00:08]} g6 {[%emt 0:00:07]} 3. Nc3 {[%emt 0:00:06]} d5 {[%emt 0:00:11]} 4. Nf3 {[%emt 0:00:09]} Bg7 {[%emt 0:00:10]} 5. Bg5 {[%emt 0:00:09]} dxc4 {[%emt 0:00:27]} 6. e3 {[%emt 0:03:30]} Be6 {[%emt 0:01:13][%cal Oc7c5]} 7. Nd2 {[%emt 0:05:58]} Nd5 {[%emt 0:09:15][%cal Oc7c5]} 8. Bxc4 $2 {[%emt 0:05:25]} (8. Qf3 $11 {and White has nothing to worry.}) 8... Nxc3 $19 {[%emt 0:00:09]} 9. bxc3 {[%emt 0:02:49] Black is clearly better.} Bxc4 {[%emt 0:00:04]} 10. Nxc4 {[%emt 0:00:12]} Qd5 {[%emt 0:00:02][%csl LRc4,LRg2,LRg5]} 11. Qf3 {[%emt 0:07:49]} (11. Qb3 {was forced.} b5 (11... Qxg5 12. Qxb7 O-O 13. h4 $11) 12. Ne5 Qxb3 13. axb3) 11... Qxc4 {[%emt 0:02:37]} 12. Qxb7 {[%emt 0:00:12][%cal Rb7c8]} Qxc3+ {[%emt 0:00:25]} 13. Ke2 {[%emt 0:00:23][%cal Rb7c8]} Qc2+ {[%emt 0:06:38]} 14. Kf1 {[%emt 0:05:36][%cal Rb7c8] [#]} O-O $1 {[%emt 0:13:18] aiming for ...Nc6.} 15. Qxa8 {[%emt 0:00:30]} (15. Bxe7 Nc6) 15... Qb2 {[%emt 0:05:09] Black is clearly winning.} 16. Rd1 {[%emt 0:05:33]} Qb5+ {[%emt 0:00:22]} (16... Qxa2 $2 {perishes.} 17. Bxe7 Qb3 18. Qf3 $18) 17. Kg1 {[%emt 0:00:07] [#]} Nc6 $1 {[%emt 0:00:12] Black took control after the opening.   Weighted Error Value: White=0.91/Black=0.14 (very precise) .  Loses game:     	White=1     	---        Mistake:       	White=1     	---        Inaccurate:     	White=1     	---        OK:         	White=1     	Black=3      Best:        	White=2     	Black=4      Strong:       	---       	Black=1} ({Not} 17... Qxg5 18. Qxa7 Qd5 19. Qxc7 $17) 0-1